Cogmind - Beta 16.1 @@@ ROGUE MODE // 2026.03.20 @ 12:45:07 Player: SunShine214 Result: Destroyed by G-47 Trooper with Particle Gun Performance ------------- Evolutions (2) 1000 Regions Visited (3) 600 Robots Destroyed (79) 395 Value Destroyed (2018) 2018 Prototype IDs (1) 20 Alien Tech Used (0) 0 Bonus (19) 19 TOTAL SCORE: 4052 Bonus ------- High Alert Combat Kills 19 Cogmind --------- Core Integrity 0/550 Matter 241/300 Energy 100/100 System Corruption 0% Temperature Cool (9) Movement Core (400) Ox7 Location -8/Materials Parts ------- > --- POWER (1) -------- (None) > --- PROPULSION (3) --- (None) > --- UTILITY (5) ------ Large Storage Unit Improved Signal Interpreter Hacking Suite > --- WEAPON (2) ------- Flail > --- INVENTORY (15) --- Improved Ion Engine Faulty Improved VTOL Module Large Storage Unit Advanced Visual Processing Unit Sensor Array Improved Weapon Shielding Hacking Suite Hacking Suite Rocket Launcher Mini Grenade Launcher Peak State ------------ > --- POWER ------------ Light Angular Momentum Engine > --- PROPULSION ------- Light Treads Light Treads Improved Treads > --- UTILITY ---------- Medium Storage Unit Large Storage Unit Improved Sensor Array Improved Signal Interpreter Hacking Suite > --- WEAPON ----------- Advanced Beam Rifle Minigun > --- INVENTORY -------- Improved Ion Engine Light Treads Light Treads Light Treads Improved VTOL Module Large Storage Unit Advanced Visual Processing Unit Sensor Array Improved Weapon Shielding Hacking Suite Hacking Suite Rocket Launcher Rocket Launcher Mini Grenade Launcher Flail [Rating: 30] Favorites ----------- Power Improved Ion Engine Engine Improved Ion Engine Power Core Light Nuclear Core Propulsion Light Treads Treads Light Treads Leg Aluminum Leg Utility Medium Storage Unit Device Sensor Array Storage Medium Storage Unit Processor Signal Interpreter Hackware Hacking Suite Weapon Minigun Energy Gun Medium Laser Ballistic Gun Minigun Launcher Rocket Launcher Special Weapon Mining Laser Impact Weapon Flail Build | -11 -10 -9 -8 ------- Run | Yrd Mat Mat Mat Slots Evolved 4 | . . 2 2 Power . | . . . . Propulsion 1 | . . . 1 Utility 3 | . . 2 1 Weapon . | . . . . Parts Attached 39 | 6 7 12 14 Power 5 | 1 1 1 2 Engine 4 | 1 . 1 2 Core 1 | . 1 . . Reactor . | . . . . Propulsion 13 | 2 2 4 5 Treads 12 | 2 1 4 5 Leg 1 | . 1 . . Wheel . | . . . . Hover . | . . . . Flight . | . . . . Utility 9 | 1 2 1 5 Device 3 | . 1 . 2 Storage 3 | 1 1 . 1 Processor 2 | . . 1 1 Hackware 1 | . . . 1 Protection . | . . . . Artifact . | . . . . Weapon 12 | 2 2 6 2 Energy Gun 3 | 1 1 . 1 Energy Cannon . | . . . . Ballistic Gun 5 | 1 . 4 . Ballistic Cannon . | . . . . Launcher 2 | . 1 1 . Special Weapon 1 | . . 1 . Impact Weapon 1 | . . . 1 Slashing Weapon . | . . . . Piercing Weapon . | . . . . Special Melee Weapon . | . . . . Unidentified Prototypes 1 | . . . 1 Parts Lost 19 | . 3 2 14 Power 3 | . 1 1 1 Propulsion 9 | . 1 1 7 Utility 2 | . . . 2 Weapon 5 | . 1 . 4 Highest Loss Streak 10 | . 1 1 10 To Critical Strikes . | . . . . Average Backups 9 | 1 6 9 12 Power . | . . . . Propulsion 1 | . 1 1 2 Utility 3 | . 2 3 5 Weapon 3 | . 2 5 4 Tool/Special . | . . . . Unused Backups 13 | . . 4 9 Power . | . . . . Propulsion 2 | . . 1 1 Utility 7 | . . 1 6 Weapon 4 | . . 2 2 Tool/Special . | . . . . Average Slot Usage (%) 89 | . 92 85 90 Engine 7 | . 8 5 8 Core 3 | . 5 4 . Treads 23 | . 24 20 24 Device 9 | . 8 11 7 Storage 13 | . 14 11 14 Processor 6 | . . 9 9 Hackware 2 | . . . 8 Energy Gun 5 | . 14 . 2 Ballistic Gun 14 | . 13 16 13 Launcher 1 | . . 4 . Peak Build Rating 30 | 6 11 15 30 Average Rating 15 | 5 7 14 23 On Entrance 8 | . 6 11 15 Avg Prop Armor Cover (%) 8 | . 8 . . Naked Turns . | . . . . Heaviest Build 46 | 11 22 25 46 Greatest Support 63 | 40 40 40 63 Greatest Overweight (x) 7 | . 1 1 7 Average Overweight (x) . | . . . . Largest Inventory Capacity 15 | 8 10 10 15 Average Capacity 10 | 6 9 10 13 Most Carried 15 | 3 10 10 15 Average Carried 9 | 1 6 9 12 Final Capacity 15 | 8 10 10 15 Final Carried 10 | 3 9 10 10 Class Distribution -------------------- 72% | Mutant 27% | Scavenger-Mutant Dominant Class ---------------- Mutant | -10/Materials Mutant | -9/Materials Scavenger-Mutant | -8/Materials Resources | -11 -10 -9 -8 ----------- Run | Yrd Mat Mat Mat Matter Collected 1690 | 183 248 554 705 Remotely . | . . . . Salvage Created 3015 | 119 779 906 1211 Parts 167 | 6 39 57 65 Haulers Intercepted 6 | . 1 4 1 Recyclers Shooed 8 | 1 4 2 1 Parts Field Recycled . | . . . . Retrieved Matter . | . . . . Parts Self-Destructed . | . . . . Prevented . | . . . . Parts Restored . | . . . . Kills | -11 -10 -9 -8 ------- Run | Yrd Mat Mat Mat Combat Hostiles Destroyed 49 | . 9 14 26 Melee 1 | . . . 1 Guns 37 | . 7 8 22 AOE 11 | . 2 6 3 Classes Destroyed 11 | 3 4 4 . Worker 3 | 2 1 . . Builder 1 | . . 1 . Tunneler 2 | 2 . . . Hauler 6 | . 1 4 1 Recycler 11 | 1 4 4 2 Operator 4 | . 1 2 1 Watcher 3 | . 1 2 . Swarmer 10 | . . 3 7 Grunt 33 | . 9 9 15 Duelist 2 | . . 1 1 Sentry 4 | . . 1 3 Best Kill Streak 15 | 3 3 15 4 Combat Bots Only 11 | . 2 11 4 Max Kills in Single Turn 4 | 1 2 4 2 Gunslinging 1 | . . . 1 Exploded 2 | . 2 2 1 Melee 1 | . . . 1 Uniques/NPCs Destroyed . | . . . . Combat | -11 -10 -9 -8 -------- Run | Yrd Mat Mat Mat Hostile Shots Fired 330 | . 58 66 206 Missed 81 | . 15 14 52 Hits 249 | . 43 52 154 Melee 6 | . . . 6 Projectile 243 | . 43 52 148 AOE 1 | . 1 . . Critical Strikes 12 | . . . 12 Damage Taken 3524 | . 611 617 2296 Core 727 | . 100 67 560 Absorbed by Shields . | . . . . Core Remaining (%) 81 | 100 60 83 . Volleys Fired 227 | 19 77 54 77 Largest 2 | 2 2 2 2 Hottest 125 | 70 95 125 94 Shots Fired 436 | 35 153 95 153 Gun 419 | 35 152 84 148 Cannon . | . . . . Launcher 16 | . 1 10 5 Special 1 | . . 1 . Kinetic 311 | 19 76 84 132 Thermal 109 | 16 76 1 16 Explosive 16 | . 1 10 5 Electromagnetic . | . . . . Robot Hit Streak 15 | 7 12 12 15 Robot Miss Streak 5 | 2 2 4 5 Penetration Max . | . . . . Secondary Targets 2 | . . 1 1 Max Gunslinging Chain 1 | . . 1 1 Shots Hit Robots 281 | 22 106 54 99 Core Hits 131 | 7 35 36 53 Critical Kills . | . . . . Critical Parts Destroyed 2 | . . 1 1 Critical Strikes 8 | . 5 1 2 Burn 6 | . 5 . 1 Destroy 2 | . . 1 1 Melee Attacks 4 | . . . 4 Impact 4 | . . . 4 Slashing . | . . . . Piercing . | . . . . Sneak Attacks . | . . . . Combat Hostiles . | . . . . Follow-up Attacks . | . . . . Damage Inflicted 5252 | 243 1175 1700 2134 Guns 3973 | 238 1112 942 1681 Cannons . | . . . . Explosions 1161 | . 63 744 354 Melee 95 | . . . 95 Ramming 23 | 5 . 14 4 Kinetic 2944 | 75 426 942 1501 Thermal 1029 | 163 686 . 180 Explosive 1161 | . 63 744 354 Electromagnetic . | . . . . Impact 95 | . . . 95 Slashing . | . . . . Piercing . | . . . . Highest Corruption . | . . . . Average Corruption . | . . . . Corruption Purged . | . . . . Corruption Blocked . | . . . . Overload Shots . | . . . . Overflow Damage 22 | . . 16 6 Projectiles . | . . . . Explosions 22 | . . 16 6 Melee . | . . . . Knockbacks . | . . . . Impact . | . . . . Kinetic . | . . . . Secondary . | . . . . Self-Inflicted Damage 86 | . . 40 46 Shots 3 | . . 2 1 Rammed 7 | 1 1 3 2 Targets Rammed 10 | 2 1 4 3 Kicked . | . . . . Crushed 3 | 1 . 1 1 Highest Temperature 262 | 100 262 124 159 Average Temperature 58 | 33 97 22 27 Received Heat Transfer 1668 | . 324 282 1062 Siege Activations . | . . . . Martial Activations . | . . . . Shielding Activations . | . . . . Robots Disrupted . | . . . . Combat Hostiles . | . . . . Robots Corrupted . | . . . . Combat Hostiles . | . . . . Parts Fried . | . . . . Impact Corruptions . | . . . . Robots Melted . | . . . . Combat Hostiles . | . . . . Parts Melted 2 | 1 1 . . Heat Transferred 3256 | 481 2368 . 407 Parts Sabotaged . | . . . . Parts Stolen . | . . . . Parts Stripped . | . . . . Power Chain Reactions . | . . . . Alert | -11 -10 -9 -8 ------- Run | Yrd Mat Mat Mat Maximum Alert Level 2 | . . 1 2 Low Security (%) 55 | 100 100 51 17 Level 1 32 | . . 48 47 Level 2 11 | . . . 35 Level 3 . | . . . . Level 4 . | . . . . Level 5 . | . . . . High Security . | . . . . Max Security . | . . . . Peak Influence 472 | 10 67 383 472 Initial 109 | . 6 20 109 Average 169 | 2 19 167 321 Influence Increases 1651 | 25 290 565 771 Destroy 0b10 Robot/C 980 | . 180 280 520 Destroy 0b10 Robot/NC 150 | 25 40 65 20 Destroy Leader 228 | . 54 82 92 Successful Hack 19 | . . 8 11 Disable Machine 105 | . 15 60 30 Destroy Structure 109 | . 1 70 38 Lose Combat Pursuer 60 | . . . 60 Influence Decreases 1279 | 15 251 353 660 Entered New Map 185 | . 4 29 152 Time Decay 928 | 15 231 314 368 Lost Part 166 | . 16 10 140 Squads Dispatched 10 | . 3 3 4 Investigation 2 | . 2 . . Extermination . | . . . . Reinforcement 6 | . 1 3 2 Assault . | . . . . Garrison 2 | . . . 2 Intercept . | . . . . Searches Triggered . | . . . . Construction Impeded 1 | . . 1 . Haulers Reinforced . | . . . . Active Scanning Responses . | . . . . Cargo Convoy Interrupts . | . . . . Stealth | -11 -10 -9 -8 --------- Run | Yrd Mat Mat Mat Distress Signals 8 | . . 5 3 Communications Jammed . | . . . . Distress Signals . | . . . . Times Spotted 85 | . 16 24 45 Peak Tracking Total 8 | . 3 6 8 Tactical Retreats 3 | . . . 3 Traps | -11 -10 -9 -8 ------- Run | Yrd Mat Mat Mat Traps Triggered 2 | . 1 . 1 Indirectly . | . . . . Trap Hack Attempts . | . . . . Triggered . | . . . . Disarmed . | . . . . Reprogrammed . | . . . . Reused . | . . . . Traps Extracted . | . . . . Installed . | . . . . Triggered . | . . . . Machines | -11 -10 -9 -8 ---------- Run | Yrd Mat Mat Mat Machines Disabled 8 | . 1 5 2 Max in Single Turn 2 | . 1 2 1 Machines Repaired . | . . . . Machines Dismantled . | . . . . Machines Sabotaged . | . . . . Overloaded Fab Kills . | . . . . Hacking | -11 -10 -9 -8 --------- Run | Yrd Mat Mat Mat Machines Accessed 10 | . 5 1 4 Terminals 9 | . 4 1 4 Fabricators . | . . . . Repair Stations . | . . . . Recycling Units 1 | . 1 . . Scanalyzers . | . . . . Garrison Access . | . . . . Total Hacks 15 | . 9 2 4 Successful 4 | . 1 1 2 Failed 11 | . 8 1 2 Catastrophic 8 | . 6 . 2 Database Lockouts . | . . . . Manual 9 | . 4 2 3 Terminals 14 | . 8 2 4 Fabricators . | . . . . Repair Stations . | . . . . Recycling Units 1 | . 1 . . Scanalyzers . | . . . . Garrison Access . | . . . . Terminal Hacks 3 | . . 1 2 Branch Access Points 2 | . . 1 1 Transport Status 1 | . . . 1 Fabricator Hacks . | . . . . Repair Station Hacks . | . . . . Recycling Unit Hacks 1 | . 1 . . Retrieve Components 1 | . 1 . . Scanalyzer . | . . . . Garrison Access Hacks . | . . . . Unauthorized Hacks . | . . . . Terminals . | . . . . Fabricators . | . . . . Repair Stations . | . . . . Recycling Units . | . . . . Scanalyzers . | . . . . Garrison Access . | . . . . Data Cores Recovered . | . . . . Used . | . . . . Hacking Detections 8 | . 4 1 3 Full Trace Events 1 | . 1 . . Feedback Events . | . . . . Feedback Blocked . | . . . . Robot Schematics Acquired . | . . . . Robots Built . | . . . . Authchips . | . . . . Time . | . . . . Total Robot Build Rating . | . . . . Part Schematics Acquired . | . . . . Parts Built . | . . . . Authchips . | . . . . Time . | . . . . Total Part Build Rating . | . . . . Part Studies Acquired . | . . . . Parts Repaired . | . . . . Time . | . . . . Parts Recycled . | . . . . Recycled Matter . | . . . . Retrieved Matter . | . . . . Retrieved Components 10 | . 10 . . Parts Scanalyzed . | . . . . Part Schematics Acquired . | . . . . Parts Damaged . | . . . . Bothacking | -11 -10 -9 -8 ------------ Run | Yrd Mat Mat Mat Used RIF Installer . | . . . . Robots Hacked . | . . . . Non-combat . | . . . . Combat . | . . . . Robot Hacks Applied . | . . . . Relay Couplers Released . | . . . . Fabnet Peak Effective % . | . . . . Robots Rewired . | . . . . Allies Hacked . | . . . . Hacks Repelled . | . . . . Allies | -11 -10 -9 -8 -------- Run | Yrd Mat Mat Mat Total Allies . | . . . . Largest Group . | . . . . Highest-Rated Group . | . . . . Highest-Rated Ally . | . . . . Total Orders . | . . . . Ally Attacks . | . . . . Total Damage . | . . . . Kills . | . . . . Allies Corrupted . | . . . . Allies Melted . | . . . . Intel | -11 -10 -9 -8 ------- Run | Yrd Mat Mat Mat Active Infowar (turns) 2010 | . 434 858 718 Sensors 2010 | . 434 858 718 Robot Analysis Total . | . . . . Derelict Logs Recovered . | . . . . Drone Launches . | . . . . Drone Recoveries . | . . . . Exploration | -11 -10 -9 -8 ------------- Run | Yrd Mat Mat Mat Turns Passed 2542 | 132 703 858 849 Spaces Moved 1045 | 43 247 409 346 Core 3 | 1 . . 2 Treads 1037 | 42 242 409 344 Legs 5 | . 5 . . Wheels . | . . . . Hover . | . . . . Flight . | . . . . Fastest Speed 50 | 50 160 160 160 Average Speed 162 | 157 160 165 161 Slowest Speed 400 | 160 190 240 400 Overloaded Moves . | . . . . Propulsion Burnouts . | . . . . Robots Hopped . | . . . . Potential Cave-ins . | . . . . Cave-ins Triggered . | . . . . Exploration Rate (%) 30 | 4 45 36 35 Regions Visited 3 Branch Regions . Pre-discovered Areas . | . . . . Known Exits Taken 1 | . . 1 . Unknown Exits Taken 2 | 1 1 . . Scrap Searched . | . . . . Spaces Dug . | . . . . Terrain Destroyed 117 | . . 83 34 Melee . | . . . . Projectile . | . . . . AOE 117 | . . 83 34 Terrain Rammed . | . . . . Walls Destroyed . | . . . . Machines Disabled . | . . . . Actions | -11 -10 -9 -8 --------- Run | Yrd Mat Mat Mat Total 1492 | 72 413 513 494 Wait 115 | . 74 10 31 Move 1042 | 42 246 408 346 Hop . | . . . . Pick Up 23 | 3 5 10 5 Fast Attach 20 | 6 4 5 5 Attach 10 | . 1 . 9 Detach 2 | . 1 1 . Swap 22 | . 3 7 12 Drop 17 | . 1 14 2 Fire 227 | 19 77 54 77 Melee 4 | . . . 4 Ram . | . . . . Kick . | . . . . Crush 10 | 2 1 4 3 Escape Stasis . | . . . . Rewire . | . . . . Trap . | . . . . Miscellaneous . | . . . . Route ------- -11/Scrapyard -10/Materials -9/Materials (discovered 3 exits: *Mat / *Min x2) -8/Materials (discovered 1 exit: Sto) History --------- Turn | Location | Event 31 | -11/Scrapyard | Discovered new exit (range 15) 133 | -11/Scrapyard | Entered Materials 303 | -10/Materials | Build established: Mutant 721 | -10/Materials | Discovered new exit (range 11) 836 | -10/Materials | Entered another Materials area 836 | -9/Materials | Evolved 2 slots: Utility x2 1306 | -9/Materials | Destroyed 11 combat bots 1354 | -9/Materials | Discovered new exit (range 15) 1389 | -9/Materials | Discovered new exit (range 15) 1632 | -9/Materials | Identified exit to Mines 1693 | -9/Materials | Identified exit to Materials 1694 | -9/Materials | Entered another Materials area 1694 | -8/Materials | Evolved 2 slots: Propulsion x1, Utility x1 1803 | -8/Materials | Garrison activated, responded to threat 2034 | -8/Materials | Build established: Scavenger-Mutant 2285 | -8/Materials | Identified exit to Storage 2489 | -8/Materials | Garrison activated, responded to threat 2522 | -8/Materials | Core integrity fell below 50% 2536 | -8/Materials | Core integrity fell below 20% 2543 | -8/Materials | Destroyed by G-47 Trooper with Particle Gun Last Messages --------------- 02526_ U-05 Engineer builds a Door. 02528_ U-05 Engineer lays Concrete. 02528_ L-31 Rogue destroyed. 02528_ K-01 Serf collects debris. 02529_ U-05 Engineer lays Concrete. 02530_ R-06 Scavenger collects Aluminum Leg. 02530_ U-05 Engineer lays Concrete. 02530_ U-05 Engineer builds a Wall. 02531_ K-01 Serf collects debris. 02531_ U-05 Engineer lays Concrete. 02534_ Lgt. Treads destroyed. 02534_ K-01 Serf collects debris. 02534_ U-05 Engineer lays Concrete. 02534_ R-06 Scavenger collects Particle Gun. 02535_ Critical hit (Burn: +37). 02535_ U-05 Engineer lays Concrete. 02537_ K-01 Serf collects debris. 02537_ U-05 Engineer lays Concrete. 02540_ U-05 Engineer builds a Wall. 02541_ K-01 Serf collects debris. Map ----- +----------------------------------------------------+ | | | | | | | | | ????????????????????????????????????????????? | | ????????????????????????????????????????????? | | ????????????????????????????????????????????? | | ????????????????????????????????????????????? | | ????????????????????????????????????????????? | | ????????????????????????????????????????????? | | ????????????????????????????????????????????? | | ????????????????????????????????????????????? | | ????????????????????????????????????????????? | | ????????????????????????????????????????????? | | ???????????????????????????????????#####????? | | ?????????????????????########??????# #????? | | ????????????????????? = #??????# #????? | | ????????????????????? #??????# #????? | | ???????????????????#""" #??????# #????? | | ???????????????????#""" #??????# #????? | | ???????????????????#""" #??????# ###### | | ???????????????????#""" #??????# # # | | ???????????????#???# #??????# # # | | ???????????????# ???? #??????# # # | | ????????????#??# ?????? ???????# # # | | ??????????? # #???####@######+### + # | | ?????????? # ### # # | | ?????????? / Y # # | | ?????????? #% % g # # | | ???????????? "# # # | | ???????????? T ^ % % ###### | | ???????????? "# ^ u kg "" == #????? | | ??????????????# "G =/ +????? | | ??????????????# a % "" #????? | | ??????????????# / r % #????? | | ??????????????# r #????? | | ??????????????# " ##""T""##"T"###????? | | ??????????????# ^ "" ##"""""##"""#??????? | | ??????????????# " #############??????? | | ??????????????# "" #??????????????????? | | ??????????????# "" #??????????????????? | | ??????????????# "" #??????????????????? | | ??????????????# """ #??????????????????? | | ?????########## """ #??????????????????? | | ?????# # " ! #?? ??????????????? | | ?????# # # #??????????????? | | ?????# # + #??????????????? | | ?????# # # ##??????????????? | | ?????# + ####???????????????? | | ?????# # #??????????????????? | +----------------------------------------------------+ Best States ------------- Heat Dissipation 31 Energy Generation 18 Energy Capacity 265 Matter Stores 300 Matter Capacity 300 Sight Range 16 Robot Scan Range 15 Terrain Scan Density 10 Evasion (%) 40 Recoil Reduction 3 Offensive Hacking 10 Item Schematics ----------------- None Robot Schematics ------------------ None Fabricated ------------ Nothing Repaired ---------- Nothing Studied --------- None Alien Tech Used ----------------- None Achievements -------------- None Challenges ------------ None Game ------ Seed OmegaTerrabombDeflector Manual? 0 Play Time 00:23:26 Cumulative 113.6 hours Start 2026.03.20 @ 11:52:01 End 2026.03.20 @ 12:45:07 Sessions 1 Manual Loads 0 Difficulty Rogue Special Mode None Game No. 167 Rogue 167 Adventurer 0 Explorer 0 Win Type - Total 1 Types 1/0/0/0/0/0/0/0/0/0 Lore% 50 Gallery% 51 Achievement% 37 Wizard Run 0 Options --------- Layout 1 ASCII 0 Keyboard 1 Movement Arrows Keybinds 0 Fullscreen 1 Font 24/Smallcaps Map View 50x35 Zoom Use 0% Tactical HUD 1 Map Filters NONE Filters NONE Steam 1 RUN: 3666587a-89ed-4d79-aa31-c596c8cf1ce6